bitfinex/quotes_SOLUSD_20250517
["timestamp","ask_amount","ask_price","bid_price","bid_amount"]
[1747484368721,142.86236056,167.72,167.63,33.47439534]
[1747484370426,136.9,167.71,167.62,24.94581781]
[1747484370605,136.9,167.71,167.62,5.96581781]
[1747484370802,136.9,167.71,167.62,24.61546667]
[1747484371844,136.9,167.71,167.62,39.53015465]
[1747484372020,142.86292368,167.71,167.62,39.53015465]
[1747484374141,136.9,167.71,167.64,5.96516344]
[1747484374341,136.9,167.71,167.64,46.87807205]
[1747484374715,136.9,167.71,167.64,53.45697205]
[1747484375038,136.9,167.75,167.65,18.64964886]
[1747484375241,5.95983074,167.79,167.69,18.64964886]
[1747484375415,144.42644513,167.8,167.69,37.58964886]
[1747484375859,142.85954513,167.8,167.71,18.64964886]
[1747484376219,142.85954513,167.8,167.72,5.96231814]
[1747484378313,142.85954513,167.8,167.71,5.96258907]
[1747484379030,7.8856,167.79,167.69,26.0]
[1747484379218,136.9,167.78,167.67,26.0]
[1747484379417,136.9,167.78,167.66,18.94]
[1747484379418,155.88,167.78,167.66,18.94]
[1747484379650,155.84,167.77,167.66,18.94]
[1747484379825,155.84,167.77,167.66,24.90434451]
[1747484380029,5.96089651,167.76,167.66,24.90434451]
[1747484383844,20.8631378,167.76,167.66,24.90434451]
[1747484385247,5.96089651,167.76,167.66,24.90434451]
[1747484385547,136.9,167.75,167.66,24.90434451]
[1747484385845,142.86157302,167.75,167.66,24.90434451]
[1747484388269,136.9,167.75,167.67,18.64964886]
[1747484388434,18.98,167.78,167.7,18.64964886]
[1747484388631,5.95921741,167.81,167.7,18.64964886]
[1747484388954,136.9,167.82,167.73,26.0]
[1747484389160,142.85880463,167.82,167.73,26.0]
[1747484389335,136.9,167.82,167.74,18.64964886]
[1747484389653,142.85880194,167.82,167.74,18.64964886]
[1747484389835,142.85880194,167.82,167.73,26.0]
[1747484390149,136.9,167.81,167.72,18.92]
[1747484390356,5.95947556,167.8,167.73,5.96196267]
[1747484391957,46.85816447,167.8,167.71,4.22725406]
[1747484392165,155.54964886,167.79,167.71,4.22725406]
[1747484393240,136.9,167.79,167.71,4.22725406]
[1747484393958,5.96018595,167.78,167.71,4.22725406]
[1747484394129,136.9,167.77,167.71,4.22725406]
[1747484394664,136.9,167.77,167.69,5.96312943]
[1747484396072,5.96089651,167.76,167.69,5.96312943]
[1747484396384,5.96089651,167.76,167.68,24.90366425]
[1747484397173,5.96089651,167.76,167.68,18.94]
[1747484397376,136.9,167.75,167.68,18.94]
[1747484397584,136.9,167.75,167.65,4.22725406]
[1747484397788,136.9,167.74,167.65,4.22725406]
[1747484398080,5.96196267,167.73,167.65,4.22725406]
[1747484398783,20.86686936,167.73,167.65,4.22725406]
[1747484399749,5.96196267,167.73,167.65,10.19199509]
[1747484399938,5.96196267,167.73,167.65,36.19199509]
[1747484400144,5.96196267,167.73,167.65,30.22725406]
[1747484400541,5.96196267,167.73,167.65,36.1918975]
[1747484400856,136.9,167.74,167.67,6.3298]
[1747484401057,136.9,167.78,167.7,26.0]
[1747484401370,136.9,167.78,167.71,18.64964886]
[1747484401958,5.95922807,167.81,167.71,18.64964886]
[1747484402168,5.95876534,167.82,167.73,18.64964886]
[1747484402680,142.85850264,167.83,167.73,44.64964886]
[1747484403055,142.85850264,167.83,167.75,18.64964886]
[1747484403670,136.9,167.83,167.78,26.0]
[1747484404485,26.0,167.82,167.73,4.22725406]
[1747484404781,162.9,167.82,167.73,4.22725406]
[1747484404949,136.9,167.81,167.73,4.22725406]
[1747484405554,7.9067,167.8,167.73,4.22725406]
[1747484405760,26.0,167.79,167.73,4.22725406]
[1747484406378,5.96018595,167.78,167.73,4.22725406]
[1747484406679,142.86018595,167.78,167.73,4.22725406]
[1747484406876,157.76065084,167.78,167.73,4.22725406]
[1747484407086,142.86018595,167.78,167.73,4.22725406]
[1747484407384,136.9,167.78,167.72,18.64964886]
[1747484408175,136.9,167.78,167.71,5.96238627]
[1747484408588,136.9,167.78,167.72,18.64964886]
[1747484409479,5.95912043,167.81,167.72,18.64964886]
[1747484410278,5.95912043,167.81,167.73,26.0]
[1747484410866,5.95876534,167.82,167.73,31.96176996]
[1747484411986,151.79626888,167.83,167.73,31.96176996]
[1747484411987,142.85844243,167.83,167.74,18.64964886]
[1747484413092,142.85844243,167.83,167.74,24.61092974]
[1747484413297,142.85844243,167.83,167.73,45.0]
[1747484413471,142.85844243,167.83,167.73,26.0]
[1747484413673,183.75446817,167.83,167.71,23.22725406]
[1747484413869,44.06044886,167.82,167.71,23.22725406]
[1747484414502,136.9,167.81,167.71,29.1899193]
[1747484415402,5.95947556,167.8,167.71,29.1899193]
[1747484415690,5.95947556,167.8,167.71,24.96266524]
[1747484416182,20.85816447,167.8,167.71,19.0]
[1747484417797,20.85816447,167.8,167.7,26.0]
[1747484417981,136.9,167.79,167.68,1.6439]
[1747484418289,1.5564,167.77,167.67,4.22725406]
[1747484418470,136.9,167.76,167.66,36.19146426]
[1747484419393,5.96125186,167.75,167.66,36.19146426]
[1747484420563,5.96125186,167.75,167.66,31.9642102]
[1747484421390,20.86438151,167.75,167.64,31.82035406]
[1747484421594,6.2016,167.74,167.64,31.82035406]
[1747484421806,6.2016,167.74,167.64,4.22725406]
[1747484421975,136.9,167.73,167.64,4.22725406]
[1747484422493,136.9,167.73,167.65,26.0]
[1747484422691,136.9,167.73,167.66,18.64964886]
[1747484422900,1.5564,167.77,167.69,26.0]
[1747484423213,5.96091984,167.76,167.7,5.96302921]
[1747484423382,5.96091984,167.76,167.69,31.96331901]
[1747484425609,5.96048876,167.78,167.7,18.64964886]
[1747484425911,5.96048876,167.78,167.69,31.96331901]
[1747484427312,5.96048876,167.78,167.71,5.96267366]
[1747484431618,136.9,167.79,167.71,5.96267366]
[1747484431789,142.8598844,167.79,167.71,5.96267366]
[1747484433305,142.8598844,167.79,167.69,31.96329829]
[1747484433499,136.9,167.78,167.68,6.0242]
[1747484433700,6.1726,167.76,167.67,4.22725406]
[1747484434004,1.5457,167.75,167.67,4.22725406]
[1747484434193,18.98,167.74,167.67,4.22725406]
[1747484434785,18.98,167.74,167.63,31.96546849]
[1747484434991,136.9,167.73,167.63,31.96546849]
[1747484435513,5.96231814,167.72,167.63,31.96546849]
[1747484435682,5.96231814,167.72,167.64,18.64964886]
[1747484436418,136.9,167.73,167.64,18.64964886]
[1747484436790,136.9,167.73,167.68,18.64964886]
[1747484437108,5.96020564,167.78,167.69,19.08]
[1747484437497,5.96020564,167.78,167.7,5.96302921]
[1747484437703,5.96020564,167.78,167.69,19.08]
[1747484437887,20.86067053,167.78,167.69,19.08]
[1747484441122,5.96020564,167.78,167.69,25.04325946]
[1747484443032,181.54964886,167.77,167.66,4.22725406]
[1747484445027,26.0,167.73,167.66,4.22725406]
[1747484445226,136.9,167.72,167.66,4.22725406]
[1747484445526,136.9,167.72,167.64,5.96506537]
[1747484446224,5.96267366,167.71,167.64,5.96506537]
[1747484447412,5.96267366,167.71,167.63,12.11687262]
[1747484450118,19.06,167.73,167.64,44.64964886]
[1747484450314,19.08,167.79,167.69,1.5581]
[1747484450627,25.03992425,167.79,167.7,25.24994886]
[1747484450796,25.03992425,167.79,167.7,6.6003]
[1747484451736,51.03992425,167.79,167.7,6.6003]
[1747484451903,65.9395011,167.79,167.7,6.6003]
[1747484452227,65.9395011,167.79,167.7,12.56326553]
[1747484452429,51.03992425,167.79,167.7,12.56326553]
[1747484453219,155.54964886,167.78,167.68,19.06]
[1747484453518,155.54964886,167.78,167.67,26.0]
[1747484453727,26.0,167.75,167.66,10.85925406]
[1747484453919,136.9,167.74,167.66,4.22725406]
[1747484454111,5.96196267,167.73,167.65,1.5828]
[1747484454720,20.86686936,167.73,167.65,1.5828]
[1747484455330,136.9,167.72,167.65,1.5828]
[1747484455538,136.9,167.71,167.63,26.0]
[1747484456233,5.96302921,167.7,167.63,26.0]
[1747484456432,5.96302921,167.7,167.63,31.96546273]
[1747484458746,136.9,167.71,167.63,31.96546273]
[1747484459633,142.86272922,167.71,167.63,31.96546273]
[1747484459941,142.86272922,167.71,167.63,26.0]
[1747484460126,142.86272922,167.71,167.63,31.96543058]
[1747484461632,142.86272922,167.71,167.62,12.59776792]
[1747484461956,26.0,167.67,167.6,4.22725406]
[1747484462267,26.0,167.63,167.6,4.22725406]
[1747484463149,136.9,167.64,167.6,4.22725406]
[1747484463732,5.96551929,167.63,167.6,4.22725406]
[1747484463950,5.96551929,167.63,167.55,27.02275115]
[1747484464157,5.96551929,167.63,167.55,1.02275115]
[1747484464318,5.96551929,167.63,167.55,6.99104898]
[1747484464817,26.0,167.67,167.57,18.64964886]
[1747484465324,31.96416368,167.67,167.57,18.64964886]
[1747484465525,31.96416368,167.67,167.58,7.791]
[1747484465835,5.96416368,167.67,167.59,5.96694313]
[1747484466763,5.96416368,167.67,167.59,31.96694313]
[1747484467058,38.14,167.69,167.6,18.64964886]
[1747484467774,155.98,167.73,167.6,18.64964886]
[1747484467958,20.86811351,167.72,167.6,18.64964886]
[1747484469269,20.86811351,167.72,167.61,5.96623113]
[1747484469468,18.64964886,167.71,167.59,26.0]
[1747484470353,18.64964886,167.71,167.59,31.9668666]
[1747484470557,20.86811351,167.72,167.59,31.9668666]
[1747484470763,25.04231814,167.72,167.6,18.64964886]
[1747484471579,25.04231814,167.72,167.61,5.96623113]
[1747484471761,25.04231814,167.72,167.62,18.64964886]
[1747484472877,25.04231814,167.72,167.63,5.96551929]
[1747484473681,25.04231814,167.72,167.63,20.87931753]
[1747484473896,19.08,167.72,167.65,8.1643]
[1747484474059,136.9,167.73,167.65,8.1643]
[1747484474897,136.9,167.73,167.66,5.96445186]
[1747484475079,136.9,167.73,167.68,26.0]
[1747484475657,136.9,167.73,167.69,18.64964886]
[1747484475860,19.16,167.77,167.69,37.80964886]
[1747484476080,142.85987593,167.79,167.69,37.80964886]
[1747484476482,136.9,167.79,167.72,26.0]
[1747484476664,25.11886737,167.82,167.73,18.64964886]
[1747484476989,25.11886737,167.82,167.74,5.96160724]
[1747484477781,25.11886737,167.82,167.73,5.96185711]
[1747484478273,40.01578072,167.82,167.72,26.0]
[1747484478972,20.86065084,167.78,167.66,4.22725406]
[1747484479291,182.5,167.77,167.66,30.22725406]
[1747484479489,19.16,167.76,167.66,30.22725406]
[1747484479789,25.6827,167.76,167.66,30.22725406]
[1747484480761,18.64964886,167.75,167.66,30.22725406]
[1747484480958,18.64964886,167.71,167.66,4.22725406]
[1747484481182,156.04,167.7,167.66,4.22725406]
[1747484481387,156.04,167.7,167.6,32.4497]
[1747484481686,156.04,167.7,167.57,39.81144886]
[1747484482009,136.9,167.69,167.58,26.0]
[1747484482211,136.9,167.69,167.59,44.64964886]
[1747484483106,5.96374045,167.68,167.59,31.96692283]
[1747484484506,20.87309159,167.68,167.59,26.0]
[1747484484709,46.87309159,167.68,167.57,1.5618]
[1747484484914,155.54964886,167.67,167.56,4.22725406]
[1747484485213,44.64964886,167.65,167.56,4.22725406]
[1747484485394,26.0,167.62,167.55,1.02275115]
[1747484485597,26.0,167.61,167.55,1.02275115]
[1747484486416,5.96658711,167.6,167.55,1.02275115]
[1747484487121,20.88305489,167.6,167.55,1.02275115]
[1747484488204,5.96658711,167.6,167.55,1.02275115]
[1747484488921,31.96626275,167.61,167.55,6.99109066]
[1747484489506,31.96626275,167.61,167.55,6.99108977]
[1747484489805,26.0,167.63,167.55,6.99108977]
[1747484490618,136.9,167.62,167.55,6.99108977]
[1747484491233,136.9,167.62,167.57,32.2298]
[1747484491426,136.9,167.62,167.58,18.64964886]
[1747484492118,136.9,167.62,167.57,32.2298]
[1747484492336,136.9,167.62,167.57,6.2298]
[1747484492899,136.9,167.62,167.57,12.19710517]
[1747484493417,136.9,167.62,167.56,1.5717]
[1747484493624,136.9,167.62,167.55,46.56275115]
[1747484493825,136.9,167.61,167.55,1.02275115]
[1747484494215,136.9,167.6,167.55,1.02275115]
[1747484495000,136.9,167.6,167.55,6.99106671]
[1747484495199,142.86659985,167.6,167.55,1.02275115]
[1747484496002,136.9,167.6,167.55,1.02275115]
[1747484496723,136.9,167.6,167.55,6.99104832]
[1747484496925,142.86661659,167.6,167.55,1.02275115]
[1747484498020,136.9,167.6,167.55,6.99099128]
[1747484498220,26.0,167.63,167.55,6.99099128]
[1747484498421,162.9,167.65,167.55,6.99099128]
[1747484499157,5.96524654,167.64,167.55,6.99099128]
[1747484499457,168.86488614,167.65,167.56,18.64964886]
[1747484500548,168.86488614,167.65,167.57,5.9676553]
[1747484501250,168.86488614,167.65,167.56,5.96796306]
[1747484501441,168.86488614,167.65,167.55,1.02275115]
[1747484501623,26.0,167.61,167.55,1.02275115]
[1747484502538,5.96658711,167.6,167.55,1.02275115]
[1747484502838,142.86658711,167.6,167.55,1.02275115]
[1747484504942,136.9,167.6,167.55,6.99111199]
[1747484505337,142.86674011,167.6,167.55,1.02275115]
[1747484507349,162.32674011,167.6,167.55,1.02275115]
[1747484513672,156.36,167.6,167.55,6.99093186]
[1747484516580,136.9,167.63,167.55,6.99093186]
[1747484517881,142.86560331,167.63,167.55,6.99093186]
[1747484519274,142.86560331,167.63,167.55,6.99101406]
[1747484520576,136.9,167.62,167.55,6.99101406]
[1747484521783,136.9,167.62,167.56,44.64964886]
[1747484521985,136.9,167.66,167.6,18.64964886]
[1747484522363,136.9,167.69,167.64,18.64964886]
[1747484522560,136.9,167.72,167.64,18.64964886]
[1747484522755,136.9,167.72,167.68,18.64964886]
[1747484523086,4.26061132,167.74,167.68,18.64964886]
[1747484523267,19.46,167.75,167.68,18.64964886]
[1747484523472,136.9,167.77,167.68,18.64964886]
[1747484523971,136.9,167.77,167.7,18.64964886]
[1747484524362,142.86075902,167.77,167.7,18.64964886]
[1747484524795,136.9,167.76,167.67,1.6142]
[1747484525084,6.326,167.75,167.66,19.38]
[1747484525972,5.96160724,167.74,167.66,25.34442645]
[1747484526167,5.96160724,167.74,167.66,19.38]
[1747484527179,20.86562536,167.74,167.66,19.38]
[1747484527993,20.86562536,167.74,167.64,31.96514546]
[1747484527994,177.3689,167.73,167.61,4.22725406]
[1747484528196,26.0,167.69,167.61,4.22725406]
[1747484528488,136.9,167.68,167.61,4.22725406]
[1747484528889,136.9,167.68,167.59,7.58089443]
[1747484529688,136.9,167.68,167.59,1.6142]
[1747484529866,136.9,167.68,167.59,7.58109269]
[1747484530064,5.96409614,167.67,167.59,7.58109269]
[1747484530265,142.86382783,167.68,167.6,18.64964886]
[1747484532290,19.38,167.7,167.62,18.64964886]
[1747484532979,25.34308617,167.7,167.62,18.64964886]
[1747484533491,19.38,167.7,167.62,18.64964886]
[1747484534189,19.38,167.7,167.64,18.64964886]
[1747484534381,19.38,167.7,167.64,44.64964886]
[1747484534588,19.46,167.73,167.64,64.00964886]
[1747484535274,25.4219869,167.73,167.64,64.00964886]
[1747484535472,19.46,167.73,167.64,64.00964886]
[1747484535680,19.46,167.73,167.68,26.0]
[1747484536498,19.46,167.73,167.69,5.96338481]
[1747484536992,136.9,167.78,167.7,18.64964886]
[1747484537593,142.86027194,167.78,167.69,5.96338481]
[1747484540196,136.9,167.77,167.68,26.0]
[1747484540384,136.9,167.77,167.66,18.64964886]
[1747484540577,136.9,167.76,167.66,18.64964886]
[1747484540769,175.58,167.75,167.65,32.0887]
[1747484540969,182.0924,167.75,167.65,31.96467322]
[1747484542111,175.58,167.75,167.66,18.64964886]
[1747484542309,162.20132856,167.75,167.67,5.96409614]
[1747484542507,162.20132856,167.75,167.68,18.64964886]
[1747484543213,162.20132856,167.75,167.66,5.96434529]
[1747484543510,157.08154886,167.74,167.63,1.5416]
[1747484543707,25.8724,167.73,167.61,5.96623113]
[1747484543909,136.9,167.72,167.62,26.0]
[1747484544786,5.96267366,167.71,167.63,31.96551929]
[1747484545409,142.86238893,167.72,167.64,18.64964886]
[1747484545717,136.9,167.72,167.64,18.64964886]
[1747484546089,142.86236983,167.72,167.64,18.64964886]
[1747484546290,1.5319,167.74,167.64,18.64964886]
[1747484546610,19.34,167.75,167.67,26.0]
[1747484546804,19.34,167.75,167.68,5.96374045]
[1747484547815,25.30145543,167.75,167.68,5.96374045]
[1747484548114,25.30145543,167.75,167.67,26.0]
[1747484548315,25.30145543,167.75,167.67,31.96406219]
[1747484550100,19.34,167.75,167.68,18.64964886]
[1747484551822,19.34,167.75,167.69,5.96338481]
[1747484552395,19.34,167.75,167.7,18.64964886]
[1747484552616,136.9,167.77,167.7,18.64964886]
[1747484553833,136.9,167.77,167.71,5.96267366]
[1747484554737,136.9,167.76,167.68,26.0]
[1747484554936,156.24,167.76,167.68,26.0]
[1747484555095,156.24,167.76,167.64,1.5707]
[1747484555302,6.3484,167.74,167.63,5.96551929]
[1747484555502,19.34,167.73,167.64,26.0]
[1747484555729,19.34,167.73,167.63,5.96551929]
[1747484555922,19.34,167.73,167.63,26.0]
[1747484555923,20.86811351,167.72,167.63,26.0]
[1747484556238,136.9,167.71,167.63,26.0]
[1747484557070,5.96302921,167.7,167.63,31.96545316]
[1747484559276,136.9,167.71,167.63,31.96545316]
[1747484559986,142.86277883,167.71,167.63,46.8792514]
[1747484560367,142.86277883,167.71,167.64,18.64964886]
[1747484560368,136.9,167.71,167.64,18.64964886]
[1747484560963,142.86270618,167.71,167.63,31.96545316]
[1747484562502,136.9,167.7,167.63,31.96545316]
[1747484562812,136.9,167.69,167.63,26.0]
[1747484562983,136.9,167.68,167.6,36.19350386]
[1747484563164,136.9,167.67,167.6,36.19350386]
[1747484563360,142.86442642,167.67,167.6,36.19350386]
[1747484563667,142.86442642,167.67,167.6,10.19350386]
[1747484564007,142.86442642,167.67,167.61,26.0]
[1747484564299,136.9,167.67,167.61,26.0]
[1747484564602,142.86411068,167.67,167.61,26.0]
[1747484565291,142.86411068,167.67,167.62,5.96587519]
[1747484566591,142.86411068,167.67,167.61,26.0]
[1747484566976,142.86411068,167.67,167.59,26.0]
[1747484566977,136.9,167.66,167.59,26.0]
[1747484567383,5.96411068,167.67,167.58,4.22725406]
[1747484567384,136.9,167.65,167.58,4.22725406]
[1747484568578,5.96516344,167.64,167.58,4.22725406]
[1747484568779,136.9,167.63,167.58,4.22725406]
[1747484569092,136.9,167.63,167.56,5.96789895]
[1747484569482,136.9,167.63,167.55,32.99102033]
[1747484570299,136.9,167.63,167.55,27.02275115]
[1747484570595,136.9,167.63,167.55,32.99111311]
[1747484571495,136.9,167.62,167.55,1.02275115]
[1747484571794,136.9,167.61,167.55,1.02275115]
[1747484572801,156.18,167.61,167.55,1.02275115]
[1747484573699,1.6309,167.59,167.55,1.02275115]
[1747484573991,136.9,167.58,167.55,1.02275115]
[1747484575603,5.9676553,167.57,167.55,1.02275115]
[1747484577515,136.9,167.56,167.55,1.02275115]
[1747484578751,142.86801145,167.56,167.55,1.02275115]
[1747484579119,5.96801145,167.56,167.55,1.02275115]
[1747484579420,20.88804009,167.56,167.45,5.97181304]
[1747484579586,174.82964886,167.55,167.44,4.22725406]
[1747484580207,174.82964886,167.55,167.44,30.22725406]
[1747484580392,174.82964886,167.55,167.44,4.22725406]
[1747484580598,20.89053359,167.54,167.44,30.22725406]
[1747484581201,20.89053359,167.54,167.44,26.0]
[1747484581906,20.89053359,167.54,167.44,31.97222867]
[1747484582104,5.96872388,167.54,167.45,18.64964886]
[1747484582520,5.96872388,167.54,167.44,31.97222867]
[1747484582718,162.1484555,167.55,167.45,18.64964886]
[1747484582915,156.18,167.55,167.48,32.4298]
[1747484584009,162.14838903,167.55,167.49,5.9705057]
[1747484585022,162.14838903,167.55,167.48,26.0]
[1747484587837,162.14838903,167.55,167.48,31.97073369]
[1747484588022,136.9,167.55,167.49,18.64964886]
[1747484589430,142.86862478,167.55,167.48,31.97073369]
[1747484589729,142.86862478,167.55,167.48,26.0]
[1747484589931,142.86862478,167.55,167.48,31.97066889]
[1747484590233,142.86862478,167.55,167.49,26.0]
[1747484593131,142.86862478,167.55,167.49,31.9703179]
[1747484593459,136.9,167.55,167.49,31.9703179]
[1747484593957,171.37759669,167.58,167.5,18.64964886]
[1747484594431,171.37759669,167.58,167.5,39.35964886]
[1747484594944,171.37759669,167.58,167.52,44.64964886]
[1747484595241,136.9,167.58,167.52,44.64964886]
[1747484596322,136.9,167.62,167.55,26.0]
[1747484596529,136.9,167.62,167.56,18.64964886]
[1747484596723,5.9649308,167.65,167.56,18.64964886]
[1747484596944,5.9649308,167.65,167.57,5.9676553]
[1747484597838,136.9,167.66,167.58,18.64964886]
[1747484598042,136.9,167.66,167.58,46.15964886]
[1747484599041,136.9,167.66,167.59,5.96694313]
[1747484599537,142.86448334,167.66,167.58,52.12687405]
[1747484599720,142.86448334,167.66,167.56,26.0]
[1747484600040,157.775613,167.66,167.56,31.96790787]
[1747484600341,142.86448334,167.66,167.57,18.64964886]
[1747484601152,142.86448334,167.66,167.58,5.9672992]
[1747484601444,19.18,167.68,167.61,18.64964886]
[1747484601630,25.14375161,167.68,167.61,18.64964886]
[1747484602135,19.18,167.68,167.61,18.64964886]
[1747484602540,25.14386912,167.68,167.61,18.64964886]
[1747484603043,19.18,167.68,167.61,18.64964886]
[1747484603343,19.18,167.68,167.62,5.96587519]
[1747484603849,25.14387388,167.68,167.62,5.96587519]
[1747484604233,19.18,167.68,167.62,5.96587519]
[1747484604430,136.9,167.7,167.63,18.64964886]
[1747484604632,142.86304572,167.7,167.63,18.64964886]
[1747484605552,136.9,167.7,167.64,5.96516344]
[1747484606745,136.9,167.7,167.65,18.64964886]
[1747484606942,136.9,167.74,167.65,18.64964886]
[1747484607345,136.9,167.74,167.67,18.64964886]
[1747484607655,136.9,167.74,167.67,25.19114886]
[1747484609548,136.9,167.74,167.68,5.96374045]
[1747484610356,136.9,167.74,167.7,5.96302921]
[1747484610659,23.0021552,167.79,167.7,5.96302921]
[1747484610660,5.96058375,167.77,167.7,5.96302921]
[1747484612033,136.9,167.78,167.71,18.64964886]
[1747484612333,40.89724343,167.82,167.7,7.48372921]
[1747484612334,5.95876534,167.82,167.73,18.64964886]
[1747484613635,142.85851341,167.83,167.75,18.64964886]
[1747484613942,142.85851341,167.83,167.75,44.64964886]
[1747484614870,142.85851341,167.83,167.76,5.96089651]
[1747484615243,142.85851341,167.83,167.75,50.61085533]
[1747484615648,136.9,167.83,167.75,50.61085533]
[1747484616448,136.9,167.83,167.75,65.51398498]
[1747484618144,142.85851926,167.83,167.75,50.61085533]
[1747484619788,136.9,167.83,167.75,50.61085533]
[1747484620077,136.9,167.83,167.75,65.51398498]
[1747484625481,142.85745455,167.86,167.75,65.51398498]
[1747484626685,142.85745455,167.86,167.79,24.6094796]
[1747484626686,136.9,167.86,167.79,24.6094796]
[1747484627902,142.85736224,167.86,167.79,24.6094796]
[1747484630389,136.9,167.86,167.79,39.50905645]
[1747484630696,1.5208,167.88,167.82,26.0]
[1747484630990,1.5222,167.93,167.83,18.64964886]
[1747484631191,7.47709307,167.93,167.83,18.64964886]
[1747484631373,1.5222,167.93,167.83,18.64964886]
[1747484631810,1.5222,167.93,167.86,26.0]
[1747484631968,19.02,167.94,167.87,18.64964886]
[1747484632167,136.9,167.97,167.91,18.64964886]
[1747484632367,1.5222,167.98,167.91,18.64964886]
[1747484632974,136.9,168.01,167.92,19.04]
[1747484633185,136.9,168.01,167.93,18.64964886]
[1747484633481,7.5586742,168.03,167.93,44.64964886]
[1747484633789,5.9513742,168.03,167.93,44.64964886]
[1747484634169,5.9513742,168.03,167.95,18.64964886]
[1747484635187,5.9513742,168.03,167.93,1.5494]
[1747484635390,5.9513742,168.03,167.95,26.0]
[1747484636494,5.9513742,168.03,167.95,31.95412026]
[1747484637099,5.9513742,168.03,167.95,26.0]
[1747484638286,5.9513742,168.03,167.95,31.95415122]
[1747484638502,20.82966974,168.03,167.95,26.0]
[1747484639377,136.9,168.02,167.9,25.069]
[1747484639605,136.9,168.01,167.9,44.089]
[1747484639971,136.9,168.0,167.88,1.5494]
[1747484640177,136.9,168.0,167.89,45.04]
[1747484640578,20.83457348,167.99,167.89,45.04]
[1747484640777,20.83457348,167.99,167.89,50.99618813]
[1747484640995,20.83457348,167.99,167.9,18.64964886]
[1747484642212,5.95273528,167.99,167.9,24.60545426]
[1747484643398,142.85242372,168.0,167.93,31.95472211]
[1747484644215,142.85242372,168.0,167.93,26.0]
[1747484645312,1.6073,167.99,167.92,26.0]
[1747484645617,20.83581378,167.98,167.92,26.0]
[1747484645815,136.9,167.97,167.92,26.0]
[1747484646404,136.9,167.96,167.88,1.5494]
[1747484646611,136.9,167.96,167.9,26.0]
[1747484647693,5.95415302,167.95,167.9,26.0]
[1747484649320,5.95415302,167.95,167.86,6.069]
[1747484649492,136.9,167.94,167.85,19.02]
[1747484649831,136.9,167.94,167.88,26.0]
[1747484650424,136.9,167.94,167.85,19.02]
[1747484650806,136.9,167.94,167.85,45.02]
[1747484651016,1.5794,167.92,167.83,4.22725406]
[1747484651212,5.95592614,167.9,167.83,4.22725406]
[1747484651545,5.95592614,167.9,167.83,30.22725406]
[1747484651702,5.95592614,167.9,167.84,26.0]
[1747484651902,20.8457415,167.9,167.83,4.22725406]
[1747484652109,136.9,167.89,167.83,4.22725406]
[1747484652527,136.9,167.88,167.83,4.22725406]
[1747484652716,136.9,167.87,167.83,4.22725406]
[1747484653234,20.85070891,167.86,167.78,8.45450812]
[1747484653394,136.9,167.85,167.75,20.6766]
[1747484653720,136.9,167.85,167.76,26.0]
[1747484653909,136.9,167.85,167.75,26.63768258]
[1747484654421,136.9,167.85,167.76,26.0]
[1747484655330,5.95805529,167.84,167.76,26.0]
[1747484655538,20.85319351,167.84,167.76,26.0]
[1747484655906,20.85319351,167.84,167.76,31.96086807]
[1747484656144,20.85319351,167.84,167.76,26.0]
[1747484657242,20.85319351,167.84,167.74,19.06]
[1747484657243,136.9,167.83,167.77,26.0]
[1747484657605,5.95876534,167.82,167.77,26.0]
[1747484658245,136.9,167.81,167.71,38.06]
[1747484658441,155.94,167.8,167.71,45.06]
[1747484659108,155.94,167.8,167.72,18.64964886]
[1747484659416,155.94,167.8,167.72,26.0]
[1747484659604,5.95983074,167.79,167.72,26.0]
[1747484659805,20.85940759,167.79,167.72,26.0]
[1747484660206,20.85940759,167.79,167.65,25.16900688]
[1747484660406,20.85940759,167.79,167.68,19.08]
[1747484660629,20.85940759,167.79,167.69,26.0]
[1747484660931,1.6557,167.77,167.65,10.25713609]
[1747484661138,155.54964886,167.76,167.65,23.30293609]
[1747484661346,6.1051,167.75,167.65,23.30293609]